[Event "Early-Titled-Tuesday-Blitz-October-17-2023"]
[Site "Chess.com"]
[Date "2023.10.17"]
[Round "8"]
[White "Maect19"]
[Black "chrisclaireredfield"]
[Result "0-1"]
[WhiteElo "2235"]
[BlackElo "2530"]
[TimeControl "180+1"]
[EndTime "9:31:47 PDT"]
[Termination "chrisclaireredfield won by resignation"]

1. d4 {[%clk 0:03:00.9]} 1... d5 {[%clk 0:02:59.6]} 2. Nf3 {[%clk 0:03:00.8]}
2... Nf6 {[%clk 0:02:59.5]} 3. e3 {[%clk 0:03:00.7]} 3... c6 {[%clk 0:02:57.8]}
4. Bd3 {[%clk 0:03:00.6]} 4... Bg4 {[%clk 0:02:57.1]} 5. O-O {[%clk 0:02:58.1]}
5... e6 {[%clk 0:02:56.2]} 6. Nbd2 {[%clk 0:02:58]} 6... Nbd7 {[%clk 0:02:56.2]}
7. b3 {[%clk 0:02:58.1]} 7... Bd6 {[%clk 0:02:53.5]} 8. Bb2 {[%clk 0:02:57.6]}
8... O-O {[%clk 0:02:53.3]} 9. c4 {[%clk 0:02:57]} 9... Re8 {[%clk 0:02:52.2]}
10. h3 {[%clk 0:02:56.6]} 10... Bh5 {[%clk 0:02:51.8]} 11. e4 {[%clk 0:02:54.4]}
11... e5 {[%clk 0:02:48.3]} 12. exd5 {[%clk 0:02:39.4]} 12... cxd5 {[%clk
0:02:47.5]} 13. dxe5 {[%clk 0:02:36.1]} 13... Nxe5 {[%clk 0:02:46.6]} 14. Be2
{[%clk 0:02:35.2]} 14... dxc4 {[%clk 0:02:40.5]} 15. Nxc4 {[%clk 0:01:59.3]}
15... Nxc4 {[%clk 0:02:39.1]} 16. Bxc4 {[%clk 0:01:56.5]} 16... Bc5 {[%clk
0:02:21]} 17. Qxd8 {[%clk 0:01:24.8]} 17... Raxd8 {[%clk 0:02:20.4]} 18. Bxf6
{[%clk 0:01:25.4]} 18... gxf6 {[%clk 0:02:20.2]} 19. g4 {[%clk 0:01:12.1]} 19...
Bg6 {[%clk 0:02:19.6]} 20. Rfd1 {[%clk 0:01:11.5]} 20... Bc2 {[%clk 0:02:09.2]}
21. Rxd8 {[%clk 0:01:10.4]} 21... Rxd8 {[%clk 0:02:09]} 22. Kf1 {[%clk
0:01:10.4]} 22... Be4 {[%clk 0:02:04.7]} 23. Be2 {[%clk 0:01:06.3]} 23... f5
{[%clk 0:01:59.3]} 24. Rd1 {[%clk 0:01:00.6]} 24... Rxd1+ {[%clk 0:01:56.1]} 25.
Bxd1 {[%clk 0:01:00]} 25... fxg4 {[%clk 0:01:56.5]} 26. hxg4 {[%clk 0:01:00.4]}
26... Kg7 {[%clk 0:01:54.3]} 27. Nd2 {[%clk 0:00:53.8]} 27... Bd3+ {[%clk
0:01:51.4]} 28. Be2 {[%clk 0:00:53.5]} 28... Bc2 {[%clk 0:01:51.8]} 29. Kg2
{[%clk 0:00:51.4]} 29... f5 {[%clk 0:01:50.8]} 30. f3 {[%clk 0:00:44.7]} 30...
Kf6 {[%clk 0:01:43.4]} 31. Nc4 {[%clk 0:00:43.2]} 31... f4 {[%clk 0:01:37]} 32.
Nd2 {[%clk 0:00:42.2]} 32... Ke5 {[%clk 0:01:34.6]} 33. Bc4 {[%clk 0:00:37.7]}
33... Kd4 {[%clk 0:01:32.1]} 34. Bg8 {[%clk 0:00:36.5]} 34... h6 {[%clk
0:01:31.6]} 35. Bf7 {[%clk 0:00:32.8]} 35... Be7 {[%clk 0:01:28.5]} 36. Be6
{[%clk 0:00:30]} 36... Kc3 {[%clk 0:01:27.7]} 37. Ne4+ {[%clk 0:00:29.6]} 37...
Kb2 {[%clk 0:01:27.5]} 38. b4 {[%clk 0:00:19.7]} 38... Bxb4 {[%clk 0:01:25.6]}
39. Nf6 {[%clk 0:00:19.8]} 39... Bb1 {[%clk 0:01:23.9]} 40. Ng8 {[%clk
0:00:19.9]} 40... Bf8 {[%clk 0:01:23.1]} 41. a4 {[%clk 0:00:19.2]} 41... a5
{[%clk 0:01:19.9]} 42. Nf6 {[%clk 0:00:19]} 42... Bc2 {[%clk 0:01:17.6]} 43. Nd5
{[%clk 0:00:19]} 43... Bxa4 {[%clk 0:01:15.5]} 44. Nxf4 {[%clk 0:00:18.7]} 44...
b5 {[%clk 0:01:15.1]} 45. Nd3+ {[%clk 0:00:18.6]} 45... Kc3 {[%clk 0:01:13.9]}
46. Nf2 {[%clk 0:00:17.2]} 46... b4 {[%clk 0:01:13.2]} 47. Ne4+ {[%clk
0:00:17.4]} 47... Kd4 {[%clk 0:01:13.6]} 48. Nd2 {[%clk 0:00:16.9]} 48... Bc2
{[%clk 0:01:12.7]} 49. Bb3 {[%clk 0:00:14.5]} 49... Bd3 {[%clk 0:01:10.4]} 50.
f4 {[%clk 0:00:13.1]} 50... Bb5 {[%clk 0:01:10]} 51. Nf3+ {[%clk 0:00:12.3]}
51... Kc3 {[%clk 0:01:09.9]} 52. Be6 {[%clk 0:00:11.4]} 52... b3 {[%clk
0:01:09.1]} 53. g5 {[%clk 0:00:10.5]} 53... hxg5 {[%clk 0:01:08.8]} 54. fxg5
{[%clk 0:00:11.1]} 54... b2 {[%clk 0:01:09.2]} 55. Bf5 {[%clk 0:00:10.1]} 55...
Bd3 {[%clk 0:01:08.6]} 0-1

[Event "Early-Titled-Tuesday-Blitz-October-17-2023"]
[Site "Chess.com"]
[Date "2023.10.17"]
[Round "8"]
[White "vladislavkovalev"]
[Black "Arystanner"]
[Result "0-1"]
[WhiteElo "2864"]
[BlackElo "2817"]
[TimeControl "180+1"]
[EndTime "9:31:59 PDT"]
[Termination "Arystanner won on time"]

1. e4 {[%clk 0:03:00.9]} 1... c5 {[%clk 0:02:59.8]} 2. Nf3 {[%clk 0:03:01]} 2...
e6 {[%clk 0:03:00.5]} 3. c3 {[%clk 0:03:01]} 3... d5 {[%clk 0:03:00.6]} 4. exd5
{[%clk 0:03:01.9]} 4... exd5 {[%clk 0:03:01.5]} 5. d4 {[%clk 0:03:02.5]} 5...
Nc6 {[%clk 0:03:02.4]} 6. Bb5 {[%clk 0:02:58.5]} 6... Nf6 {[%clk 0:03:03]} 7.
O-O {[%clk 0:02:58.5]} 7... Be7 {[%clk 0:03:03.1]} 8. dxc5 {[%clk 0:02:56.9]}
8... Bxc5 {[%clk 0:03:04]} 9. Re1+ {[%clk 0:02:55]} 9... Be6 {[%clk 0:03:04.2]}
10. Be3 {[%clk 0:02:52.5]} 10... Bxe3 {[%clk 0:03:04.4]} 11. Rxe3 {[%clk
0:02:53.4]} 11... O-O {[%clk 0:03:04.8]} 12. Na3 {[%clk 0:02:14.9]} 12... Qb6
{[%clk 0:03:02.4]} 13. Qe2 {[%clk 0:01:47.8]} 13... Rfe8 {[%clk 0:02:54.4]} 14.
h3 {[%clk 0:01:46.7]} 14... h6 {[%clk 0:02:54.1]} 15. Ba4 {[%clk 0:01:26.4]}
15... Red8 {[%clk 0:02:51.8]} 16. Bb3 {[%clk 0:01:15.2]} 16... Bf5 {[%clk
0:02:43.6]} 17. Nb5 {[%clk 0:01:08.9]} 17... Be4 {[%clk 0:02:37.3]} 18. Nbd4
{[%clk 0:01:04.9]} 18... Rac8 {[%clk 0:02:33.7]} 19. Rd1 {[%clk 0:01:03.8]}
19... Na5 {[%clk 0:02:22.7]} 20. Nd2 {[%clk 0:01:02.2]} 20... Bg6 {[%clk
0:02:20.4]} 21. Nf1 {[%clk 0:00:52.3]} 21... Nxb3 {[%clk 0:02:20.5]} 22. axb3
{[%clk 0:00:52.3]} 22... a5 {[%clk 0:02:20.5]} 23. Ng3 {[%clk 0:00:50.1]} 23...
Re8 {[%clk 0:02:16]} 24. Re1 {[%clk 0:00:48.8]} 24... Rxe3 {[%clk 0:02:16.1]}
25. Qxe3 {[%clk 0:00:49.7]} 25... Re8 {[%clk 0:02:13.6]} 26. Qd2 {[%clk
0:00:50]} 26... Rxe1+ {[%clk 0:02:01.1]} 27. Qxe1 {[%clk 0:00:50.9]} 27... Ne4
{[%clk 0:01:56.6]} 28. Nf1 {[%clk 0:00:36]} 28... Nc5 {[%clk 0:01:49.3]} 29. Ne3
{[%clk 0:00:26.7]} 29... Qd8 {[%clk 0:01:34.3]} 30. Qd2 {[%clk 0:00:25.8]} 30...
Be4 {[%clk 0:01:30.3]} 31. f3 {[%clk 0:00:24.1]} 31... Bg6 {[%clk 0:01:30.5]}
32. Ne2 {[%clk 0:00:24.2]} 32... Nd3 {[%clk 0:01:30.2]} 33. Nd4 {[%clk
0:00:18.8]} 33... Nc5 {[%clk 0:01:26.8]} 34. Qf2 {[%clk 0:00:15]} 34... Qd6
{[%clk 0:01:24]} 35. Qe2 {[%clk 0:00:13.2]} 35... Kh7 {[%clk 0:01:23.6]} 36. Ng4
{[%clk 0:00:12.5]} 36... Qb6 {[%clk 0:01:21.1]} 37. Qd1 {[%clk 0:00:08.3]} 37...
Ne6 {[%clk 0:01:20.7]} 38. Ne5 {[%clk 0:00:05.9]} 38... Nxd4 {[%clk 0:01:18]}
39. cxd4 {[%clk 0:00:06.2]} 39... Bf5 {[%clk 0:01:18]} 40. g4 {[%clk 0:00:06.4]}
40... Be6 {[%clk 0:01:18.3]} 41. Qd3+ {[%clk 0:00:06.5]} 41... Kg8 {[%clk
0:01:17.9]} 42. h4 {[%clk 0:00:07.1]} 42... f6 {[%clk 0:01:18.4]} 43. Ng6 {[%clk
0:00:06.8]} 43... Bf7 {[%clk 0:01:18.5]} 44. Ne7+ {[%clk 0:00:06.2]} 44... Kf8
{[%clk 0:01:18.9]} 45. Nf5 {[%clk 0:00:06.8]} 45... Qc7 {[%clk 0:01:18.4]} 46.
Kg2 {[%clk 0:00:06.3]} 46... Bg6 {[%clk 0:01:18.8]} 47. h5 {[%clk 0:00:05.1]}
47... Bh7 {[%clk 0:01:18.2]} 48. Qd2 {[%clk 0:00:02.9]} 48... Bxf5 {[%clk
0:01:17.7]} 49. gxf5 {[%clk 0:00:03.8]} 49... Kg8 {[%clk 0:01:17.7]} 50. Qe2
{[%clk 0:00:03.8]} 50... Qd7 {[%clk 0:01:16.5]} 51. Qd3 {[%clk 0:00:04]} 51...
Qe8 {[%clk 0:01:16.2]} 52. Qc3 {[%clk 0:00:01.7]} 52... Kh7 {[%clk 0:01:15.9]}
53. Qxa5 {[%clk 0:00:01.3]} 53... Qd7 {[%clk 0:01:12.8]} 0-1

[Event "Early-Titled-Tuesday-Blitz-October-17-2023"]
[Site "Chess.com"]
[Date "2023.10.17"]
[Round "8"]
[White "Kirill_Klukin"]
[Black "Emeraldddd"]
[Result "1-0"]
[WhiteElo "2675"]
[BlackElo "2535"]
[TimeControl "180+1"]
[EndTime "9:32:02 PDT"]
[Termination "Kirill_Klukin won by checkmate"]

1. e4 {[%clk 0:03:00.9]} 1... c5 {[%clk 0:02:59.7]} 2. d4 {[%clk 0:03:00.5]}
2... cxd4 {[%clk 0:02:59.8]} 3. Qxd4 {[%clk 0:03:01.4]} 3... Nc6 {[%clk
0:02:59.1]} 4. Qd3 {[%clk 0:03:01.7]} 4... Nf6 {[%clk 0:02:59.8]} 5. Nc3 {[%clk
0:03:01.3]} 5... g6 {[%clk 0:02:55.5]} 6. Nf3 {[%clk 0:03:01.5]} 6... d6 {[%clk
0:02:55.5]} 7. Be2 {[%clk 0:03:01.8]} 7... Bg7 {[%clk 0:02:55.9]} 8. O-O {[%clk
0:03:01.3]} 8... O-O {[%clk 0:02:56.4]} 9. h3 {[%clk 0:03:01.9]} 9... a6 {[%clk
0:02:56.3]} 10. Bg5 {[%clk 0:03:02]} 10... b5 {[%clk 0:02:55.8]} 11. Nd5 {[%clk
0:02:58.5]} 11... Nxd5 {[%clk 0:02:49]} 12. exd5 {[%clk 0:02:58.7]} 12... Ne5
{[%clk 0:02:46]} 13. Nxe5 {[%clk 0:02:56.3]} 13... Bxe5 {[%clk 0:02:45.4]} 14.
c3 {[%clk 0:02:56.9]} 14... Qc7 {[%clk 0:02:37.1]} 15. Rfe1 {[%clk 0:02:54.7]}
15... Bf5 {[%clk 0:02:29.7]} 16. Qd2 {[%clk 0:02:54.1]} 16... Rfe8 {[%clk
0:02:23.7]} 17. a4 {[%clk 0:02:38.8]} 17... Qb7 {[%clk 0:02:17.1]} 18. Bf1
{[%clk 0:02:27.7]} 18... Rac8 {[%clk 0:02:01.8]} 19. axb5 {[%clk 0:02:25.9]}
19... axb5 {[%clk 0:02:02.7]} 20. Be3 {[%clk 0:02:17.8]} 20... Ra8 {[%clk
0:01:51.2]} 21. Be2 {[%clk 0:01:17.5]} 21... Ra4 {[%clk 0:01:47.8]} 22. Bf3
{[%clk 0:01:05.7]} 22... Rea8 {[%clk 0:01:44.3]} 23. Rxa4 {[%clk 0:01:01.9]}
23... bxa4 {[%clk 0:01:41.6]} 24. Ra1 {[%clk 0:00:49.8]} 24... h5 {[%clk
0:01:37.4]} 25. Bd4 {[%clk 0:00:34.2]} 25... Bxd4 {[%clk 0:01:22.1]} 26. cxd4
{[%clk 0:00:35.1]} 26... Qb5 {[%clk 0:01:01.5]} 27. Ra3 {[%clk 0:00:34.2]} 27...
Rb8 {[%clk 0:00:59.8]} 28. Qe3 {[%clk 0:00:32.4]} 28... Rb7 {[%clk 0:00:53.8]}
29. Bd1 {[%clk 0:00:10.5]} 29... Qxb2 {[%clk 0:00:52]} 30. Bxa4 {[%clk
0:00:08.6]} 30... Rb4 {[%clk 0:00:45.3]} 31. Bc6 {[%clk 0:00:06.5]} 31... Kg7
{[%clk 0:00:38.4]} 32. Ra7 {[%clk 0:00:05.5]} 32... Qxd4 {[%clk 0:00:26.7]} 33.
Rxe7 {[%clk 0:00:04.3]} 33... Rb1+ {[%clk 0:00:23.8]} 34. Kh2 {[%clk 0:00:04.4]}
34... Qd1 {[%clk 0:00:23.3]} 35. Qc3+ {[%clk 0:00:02.3]} 35... Kf8 {[%clk
0:00:15.1]} 36. Re8# {[%clk 0:00:02.9]} 1-0

[Event "Early-Titled-Tuesday-Blitz-October-17-2023"]
[Site "Chess.com"]
[Date "2023.10.17"]
[Round "8"]
[White "Harry_Rakkel"]
[Black "seopie"]
[Result "0-1"]
[WhiteElo "2713"]
[BlackElo "2859"]
[TimeControl "180+1"]
[EndTime "9:32:03 PDT"]
[Termination "seopie won on time"]

1. e4 {[%clk 0:02:56.2]} 1... c5 {[%clk 0:02:59.9]} 2. Nf3 {[%clk 0:02:55]} 2...
d6 {[%clk 0:03:00.3]} 3. d4 {[%clk 0:02:54.6]} 3... cxd4 {[%clk 0:03:00.5]} 4.
Nxd4 {[%clk 0:02:54.6]} 4... Nf6 {[%clk 0:03:01.4]} 5. Nc3 {[%clk 0:02:54.6]}
5... a6 {[%clk 0:03:01.2]} 6. Be3 {[%clk 0:02:54.3]} 6... Ng4 {[%clk 0:02:58.5]}
7. Bc1 {[%clk 0:02:53.3]} 7... Nf6 {[%clk 0:02:58.6]} 8. a4 {[%clk 0:02:48.9]}
8... g6 {[%clk 0:02:57.1]} 9. Be2 {[%clk 0:02:46.2]} 9... Bg7 {[%clk 0:02:57.3]}
10. O-O {[%clk 0:02:46.2]} 10... O-O {[%clk 0:02:57.6]} 11. Be3 {[%clk 0:02:46]}
11... Nc6 {[%clk 0:02:54.9]} 12. Re1 {[%clk 0:02:43]} 12... Nxd4 {[%clk
0:02:51.5]} 13. Bxd4 {[%clk 0:02:42.3]} 13... Be6 {[%clk 0:02:52.2]} 14. Qd2
{[%clk 0:02:41.4]} 14... Rc8 {[%clk 0:02:51.7]} 15. Rad1 {[%clk 0:02:40.9]}
15... Re8 {[%clk 0:02:43.5]} 16. h3 {[%clk 0:02:40]} 16... Qa5 {[%clk 0:02:42]}
17. Qe3 {[%clk 0:02:37.4]} 17... Nd7 {[%clk 0:02:35.6]} 18. Bxg7 {[%clk
0:02:36.1]} 18... Kxg7 {[%clk 0:02:36.5]} 19. Rd4 {[%clk 0:02:26.2]} 19... Qb6
{[%clk 0:02:32.3]} 20. Rb1 {[%clk 0:02:07.4]} 20... Ne5 {[%clk 0:02:30]} 21. Qd2
{[%clk 0:01:59.8]} 21... Nc6 {[%clk 0:02:13.9]} 22. Rd3 {[%clk 0:01:56.9]} 22...
Ne5 {[%clk 0:02:13.9]} 23. Rg3 {[%clk 0:01:54.8]} 23... Bc4 {[%clk 0:02:06.6]}
24. Bd1 {[%clk 0:01:51.5]} 24... Be6 {[%clk 0:02:05.2]} 25. h4 {[%clk
0:01:42.9]} 25... Nc4 {[%clk 0:02:02.8]} 26. Qc1 {[%clk 0:01:42.4]} 26... Qd4
{[%clk 0:02:00.3]} 27. Rd3 {[%clk 0:01:38.4]} 27... Qc5 {[%clk 0:01:53.7]} 28.
h5 {[%clk 0:01:33.8]} 28... b5 {[%clk 0:01:48.6]} 29. axb5 {[%clk 0:01:30.1]}
29... axb5 {[%clk 0:01:49.5]} 30. Nd5 {[%clk 0:01:29.2]} 30... Ne5 {[%clk
0:01:40.8]} 31. Rc3 {[%clk 0:01:12.1]} 31... Qa7 {[%clk 0:01:32.9]} 32. h6+
{[%clk 0:01:04.9]} 32... Kf8 {[%clk 0:01:27.1]} 33. Ra1 {[%clk 0:01:05]} 33...
Qb7 {[%clk 0:01:24]} 34. Rxc8 {[%clk 0:00:36.3]} 34... Rxc8 {[%clk 0:01:23.9]}
35. Qd2 {[%clk 0:00:36.7]} 35... Bxd5 {[%clk 0:01:19.5]} 36. exd5 {[%clk
0:00:36.1]} 36... Qb6 {[%clk 0:01:18.5]} 37. Kh2 {[%clk 0:00:33.5]} 37... f5
{[%clk 0:01:16]} 38. f4 {[%clk 0:00:33]} 38... Nd7 {[%clk 0:01:15.9]} 39. Bf3
{[%clk 0:00:25.9]} 39... Nf6 {[%clk 0:01:14.8]} 40. Qe2 {[%clk 0:00:25.3]} 40...
Qd4 {[%clk 0:01:09.2]} 41. Qe6 {[%clk 0:00:20]} 41... Qxf4+ {[%clk 0:01:08.3]}
42. Kh3 {[%clk 0:00:18.1]} 42... Qxh6+ {[%clk 0:01:06]} 43. Kg3 {[%clk
0:00:17.6]} 43... Qg5+ {[%clk 0:01:01.7]} 44. Kh3 {[%clk 0:00:16.3]} 44... Re8
{[%clk 0:01:00.6]} 45. Ra7 {[%clk 0:00:15.3]} 45... Qf4 {[%clk 0:00:50.3]} 46.
Be2 {[%clk 0:00:13.4]} 46... Ne4 {[%clk 0:00:46.3]} 0-1

[Event "Early-Titled-Tuesday-Blitz-October-17-2023"]
[Site "Chess.com"]
[Date "2023.10.17"]
[Round "8"]
[White "crazy_m_attack"]
[Black "BeautiFullMindChess"]
[Result "1-0"]
[WhiteElo "2441"]
[BlackElo "2275"]
[TimeControl "180+1"]
[EndTime "9:32:05 PDT"]
[Termination "crazy_m_attack won by resignation"]

1. e4 {[%clk 0:03:00.9]} 1... e6 {[%clk 0:02:50.4]} 2. d4 {[%clk 0:03:00.2]}
2... d5 {[%clk 0:02:49.3]} 3. Nc3 {[%clk 0:03:01.1]} 3... Bb4 {[%clk 0:02:45.9]}
4. a3 {[%clk 0:02:59.6]} 4... Bxc3+ {[%clk 0:02:44.9]} 5. bxc3 {[%clk
0:03:00.5]} 5... dxe4 {[%clk 0:02:45.4]} 6. Qg4 {[%clk 0:03:00.7]} 6... Nf6
{[%clk 0:02:44.8]} 7. Qxg7 {[%clk 0:03:00.8]} 7... Rg8 {[%clk 0:02:44.3]} 8. Qh6
{[%clk 0:03:01.4]} 8... b6 {[%clk 0:02:37.4]} 9. Ne2 {[%clk 0:02:58.7]} 9... Bb7
{[%clk 0:02:35.6]} 10. Qd2 {[%clk 0:02:44.9]} 10... Nc6 {[%clk 0:02:16.9]} 11.
c4 {[%clk 0:02:42]} 11... Qd7 {[%clk 0:02:07.5]} 12. Bb2 {[%clk 0:02:41.5]}
12... O-O-O {[%clk 0:02:04.3]} 13. O-O-O {[%clk 0:02:41.7]} 13... h5 {[%clk
0:01:57.2]} 14. d5 {[%clk 0:02:32.1]} 14... Nxd5 {[%clk 0:01:45.6]} 15. cxd5
{[%clk 0:02:31.6]} 15... exd5 {[%clk 0:01:46.5]} 16. Nd4 {[%clk 0:02:18.9]}
16... Na5 {[%clk 0:01:27.9]} 17. Nb5 {[%clk 0:02:07.7]} 17... Kb8 {[%clk
0:01:23.7]} 18. Bc3 {[%clk 0:02:02.4]} 18... Nc6 {[%clk 0:01:06.4]} 19. Nd4
{[%clk 0:01:54.6]} 19... Ne5 {[%clk 0:00:58.3]} 20. f4 {[%clk 0:01:25.1]} 20...
Ng4 {[%clk 0:00:38.1]} 21. Bb5 {[%clk 0:01:09.4]} 21... c6 {[%clk 0:00:37.6]}
22. Ba4 {[%clk 0:01:09.4]} 22... b5 {[%clk 0:00:33.7]} 23. Bb3 {[%clk
0:01:08.6]} 23... c5 {[%clk 0:00:20.6]} 24. Ne2 {[%clk 0:01:07.9]} 24... d4
{[%clk 0:00:19.2]} 25. Ba1 {[%clk 0:01:05.9]} 25... e3 {[%clk 0:00:18.6]} 26.
Qa5 {[%clk 0:01:00]} 26... Nf2 {[%clk 0:00:18.3]} 27. Rhf1 {[%clk 0:00:57.2]}
27... Nxd1 {[%clk 0:00:18.4]} 28. Rxd1 {[%clk 0:00:57.6]} 28... Rxg2 {[%clk
0:00:18.8]} 29. Nxd4 {[%clk 0:00:54.2]} 29... cxd4 {[%clk 0:00:19]} 30. Bxd4
{[%clk 0:00:51.2]} 30... Rd2 {[%clk 0:00:15.7]} 31. Bxa7+ {[%clk 0:00:30.9]}
31... Kc8 {[%clk 0:00:15.3]} 32. Re1 {[%clk 0:00:14.9]} 32... Rd1+ {[%clk
0:00:11.6]} 33. Rxd1 {[%clk 0:00:14.2]} 33... Qxd1+ {[%clk 0:00:12.5]} 34. Kb2
{[%clk 0:00:15.1]} 34... Qd4+ {[%clk 0:00:12.8]} 35. Bxd4 {[%clk 0:00:14.6]}
35... Rxd4 {[%clk 0:00:13]} 36. Qc3+ {[%clk 0:00:14.7]} 36... Rc4 {[%clk
0:00:12.7]} 37. Bxc4 {[%clk 0:00:14.9]} 1-0

[Event "Early-Titled-Tuesday-Blitz-October-17-2023"]
[Site "Chess.com"]
[Date "2023.10.17"]
[Round "8"]
[White "MightyGMpretender"]
[Black "mishanick"]
[Result "0-1"]
[WhiteElo "2832"]
[BlackElo "3018"]
[TimeControl "180+1"]
[EndTime "9:32:06 PDT"]
[Termination "mishanick won by resignation"]

1. Nf3 {[%clk 0:03:00.9]} 1... d5 {[%clk 0:02:53]} 2. e3 {[%clk 0:03:01.3]} 2...
Nf6 {[%clk 0:02:52.2]} 3. c4 {[%clk 0:03:01.7]} 3... c6 {[%clk 0:02:52.6]} 4.
Nc3 {[%clk 0:03:01.6]} 4... e6 {[%clk 0:02:53.1]} 5. d4 {[%clk 0:02:58.5]} 5...
Nbd7 {[%clk 0:02:52.3]} 6. Be2 {[%clk 0:02:58.2]} 6... Bd6 {[%clk 0:02:51.9]} 7.
O-O {[%clk 0:02:57.5]} 7... O-O {[%clk 0:02:52.4]} 8. b3 {[%clk 0:02:58.2]} 8...
e5 {[%clk 0:02:50.4]} 9. dxe5 {[%clk 0:02:56.4]} 9... Nxe5 {[%clk 0:02:51.3]}
10. cxd5 {[%clk 0:02:56.9]} 10... cxd5 {[%clk 0:02:50.7]} 11. Bb2 {[%clk
0:02:56.7]} 11... Nxf3+ {[%clk 0:02:39.7]} 12. Bxf3 {[%clk 0:02:56.6]} 12... Be5
{[%clk 0:02:40.4]} 13. Na4 {[%clk 0:02:46.6]} 13... Bxb2 {[%clk 0:02:37.2]} 14.
Nxb2 {[%clk 0:02:47.5]} 14... Bf5 {[%clk 0:02:19.2]} 15. Qd2 {[%clk 0:02:31.4]}
15... Qe7 {[%clk 0:02:07.7]} 16. Rfc1 {[%clk 0:02:26.4]} 16... Rfc8 {[%clk
0:02:04.3]} 17. Nd3 {[%clk 0:02:20.3]} 17... Bxd3 {[%clk 0:01:54.9]} 18. Qxd3
{[%clk 0:02:20.6]} 18... Qa3 {[%clk 0:01:55.5]} 19. Qd2 {[%clk 0:02:14.6]} 19...
Rc6 {[%clk 0:01:50.3]} 20. Rxc6 {[%clk 0:02:12.9]} 20... bxc6 {[%clk 0:01:51.2]}
21. Rc1 {[%clk 0:02:09.7]} 21... Rc8 {[%clk 0:01:51.7]} 22. h3 {[%clk
0:02:08.5]} 22... h6 {[%clk 0:01:50.1]} 23. Rc2 {[%clk 0:02:06.5]} 23... a5
{[%clk 0:01:33.9]} 24. Qd4 {[%clk 0:02:06.4]} 24... Qb4 {[%clk 0:01:30.4]} 25.
g3 {[%clk 0:01:41.8]} 25... Qd6 {[%clk 0:01:00.9]} 26. Qc5 {[%clk 0:01:34.7]}
26... Qd8 {[%clk 0:00:56.4]} 27. Qd4 {[%clk 0:01:21.5]} 27... Qe7 {[%clk
0:00:42.4]} 28. Qb6 {[%clk 0:01:17.9]} 28... Nd7 {[%clk 0:00:16.9]} 29. Qxa5
{[%clk 0:01:09.9]} 29... Ne5 {[%clk 0:00:15]} 30. Bg2 {[%clk 0:01:10.6]} 30...
Qe6 {[%clk 0:00:12.4]} 31. Qa6 {[%clk 0:01:02.4]} 31... Qf5 {[%clk 0:00:11]} 32.
Qe2 {[%clk 0:00:32.8]} 32... h5 {[%clk 0:00:11.1]} 33. a4 {[%clk 0:00:27.2]}
33... h4 {[%clk 0:00:11.1]} 34. g4 {[%clk 0:00:27.3]} 34... Qe6 {[%clk
0:00:11.4]} 35. a5 {[%clk 0:00:27.2]} 35... Ra8 {[%clk 0:00:12]} 36. Ra2 {[%clk
0:00:24.4]} 36... Qd6 {[%clk 0:00:11.6]} 37. a6 {[%clk 0:00:24.1]} 37... Qb4
{[%clk 0:00:11.2]} 38. Qc2 {[%clk 0:00:22.6]} 38... Qb6 {[%clk 0:00:10.9]} 39.
Bf1 {[%clk 0:00:18.1]} 39... Nf3+ {[%clk 0:00:11.5]} 40. Kg2 {[%clk 0:00:18.3]}
40... Ne1+ {[%clk 0:00:11.3]} 0-1

[Event "Early-Titled-Tuesday-Blitz-October-17-2023"]
[Site "Chess.com"]
[Date "2023.10.17"]
[Round "8"]
[White "Balla_Tamas"]
[Black "Actuary44"]
[Result "0-1"]
[WhiteElo "2391"]
[BlackElo "2518"]
[TimeControl "180+1"]
[EndTime "9:32:10 PDT"]
[Termination "Actuary44 won on time"]

1. e4 {[%clk 0:03:00.9]} 1... c5 {[%clk 0:02:58.9]} 2. c3 {[%clk 0:02:58.2]}
2... d5 {[%clk 0:02:58.8]} 3. exd5 {[%clk 0:02:49.3]} 3... Qxd5 {[%clk
0:02:59.7]} 4. d4 {[%clk 0:02:50.1]} 4... cxd4 {[%clk 0:03:00.1]} 5. cxd4 {[%clk
0:02:44.8]} 5... Nc6 {[%clk 0:03:00.3]} 6. Nf3 {[%clk 0:02:44.8]} 6... Bg4
{[%clk 0:03:00.7]} 7. Be2 {[%clk 0:02:43.9]} 7... e6 {[%clk 0:03:01.1]} 8. Nc3
{[%clk 0:02:43.8]} 8... Bb4 {[%clk 0:03:01.1]} 9. O-O {[%clk 0:02:43]} 9... Bxc3
{[%clk 0:03:01.4]} 10. bxc3 {[%clk 0:02:43.9]} 10... Nge7 {[%clk 0:03:01.9]} 11.
h3 {[%clk 0:02:23.5]} 11... Bf5 {[%clk 0:03:01.1]} 12. Be3 {[%clk 0:02:21.7]}
12... O-O {[%clk 0:03:00.2]} 13. c4 {[%clk 0:02:11]} 13... Qa5 {[%clk
0:02:58.7]} 14. Bd3 {[%clk 0:02:02.7]} 14... Rfd8 {[%clk 0:02:55.9]} 15. Bxf5
{[%clk 0:01:53]} 15... Nxf5 {[%clk 0:02:56.8]} 16. Qe2 {[%clk 0:01:50.1]} 16...
Ncxd4 {[%clk 0:02:49.8]} 17. Nxd4 {[%clk 0:01:50.5]} 17... Nxd4 {[%clk
0:02:50.2]} 18. Bxd4 {[%clk 0:01:51]} 18... Rxd4 {[%clk 0:02:50.6]} 19. Rfd1
{[%clk 0:01:51.5]} 19... Rad8 {[%clk 0:02:43.5]} 20. Rxd4 {[%clk 0:01:48.2]}
20... Rxd4 {[%clk 0:02:44.4]} 21. Rc1 {[%clk 0:01:39.8]} 21... Qd2 {[%clk
0:02:35.6]} 22. Qf1 {[%clk 0:01:31.9]} 22... Qxa2 {[%clk 0:02:32.1]} 23. c5
{[%clk 0:01:31.7]} 23... Qd5 {[%clk 0:02:27.5]} 24. Qe1 {[%clk 0:01:26]} 24...
h6 {[%clk 0:02:09.8]} 25. Qa5 {[%clk 0:01:22.8]} 25... Rd1+ {[%clk 0:01:59.1]}
26. Rxd1 {[%clk 0:01:22.5]} 26... Qxd1+ {[%clk 0:02:00]} 27. Kh2 {[%clk
0:01:23.2]} 27... a6 {[%clk 0:02:00.4]} 28. Qc7 {[%clk 0:01:22.6]} 28... Qd5
{[%clk 0:01:57.9]} 29. Qb8+ {[%clk 0:01:14.2]} 29... Kh7 {[%clk 0:01:57.4]} 30.
Qc7 {[%clk 0:01:14.7]} 30... Kg6 {[%clk 0:01:56]} 31. g3 {[%clk 0:01:06.3]}
31... h5 {[%clk 0:01:34.6]} 32. h4 {[%clk 0:00:46.8]} 32... Qc6 {[%clk
0:01:16.5]} 33. Qe5 {[%clk 0:00:38.9]} 33... a5 {[%clk 0:01:05.3]} 34. Qe3
{[%clk 0:00:35.5]} 34... Kh7 {[%clk 0:00:54]} 35. Qd3+ {[%clk 0:00:19.2]} 35...
f5 {[%clk 0:00:46.6]} 36. Qe2 {[%clk 0:00:05.5]} 36... Kg6 {[%clk 0:00:46.2]}
37. Qe3 {[%clk 0:00:03.3]} 37... Kf7 {[%clk 0:00:40.2]} 38. Qg5 {[%clk
0:00:04.2]} 38... Qxc5 {[%clk 0:00:37.9]} 39. Qxh5+ {[%clk 0:00:03.8]} 39... Ke7
{[%clk 0:00:25.4]} 40. Qg5+ {[%clk 0:00:04.4]} 40... Kf8 {[%clk 0:00:22.8]} 0-1